Cogmind - Beta 16.1 @@@ ROGUE MODE // 2026.04.04 @ 10:10:58 Player: shockman27 Result: Destroyed by as-53180 with Assembled Rifle Performance ------------- Evolutions (4) 2000 Regions Visited (14) 2800 Robots Destroyed (243) 1215 Value Destroyed (10234) 10234 Prototype IDs (36) 720 Alien Tech Used (0) 0 Bonus (3795) 3795 TOTAL SCORE: 20764 Bonus ------- High Alert Combat Kills 1215 Follower Combat Kills 311 Entered Garrisons 800 Used RIF Installer 1500 Aligned with FarCom 300 Friendly Fire -331 Cogmind --------- Core Integrity 0/850 Matter 300/300 Energy 100/100 System Corruption 4% Temperature Cool (2) Movement Flying (35) Location -6/Garrison Parts ------- > --- POWER (1) -------- (None) > --- PROPULSION (4) --- VTOL Module > --- UTILITY (6) ------ (None) > --- WEAPON (4) ------- (None) > --- INVENTORY (5) ---- High-capacity Matter Pod (200) Experimental Sensor Array EM Shield Relay Coupler [Behemoth] (18) Remote Datajack Peak State ------------ > --- POWER ------------ Neutrino Core > --- PROPULSION ------- Improved Heavy Treads Improved Heavy Treads > --- UTILITY ---------- Improved Cooling System High-capacity Storage Unit Experimental Sensor Array Experimental Signal Interpreter Improved Medium Armor Plating Experimental Hacking Suite > --- WEAPON ----------- Advanced Variable Charge Gun Gauss Rifle Gauss Rifle Coil Gun > --- INVENTORY -------- Fusion Reactor Improved Heavy Treads Improved Heavy Treads High-capacity Matter Pod Kinecellerator Transmission Jammer Improved Medium Armor Plating EM Shield Relay Coupler [Heavy] Relay Coupler [Behemoth] Dynamic Insulation System Heavy Gatling Laser AWS/Gauss Hypervelocity Mass Driver Heavy Rocket Launcher Remote Datajack Field Lobotomy Kit [Rating: 100] Favorites ----------- Power Ion Engine Engine Ion Engine Power Core Nuclear Core Reactor Antimatter Reactor Propulsion Light Treads Treads Light Treads Wheel Armored Wheel Flight Unit VTOL Module Utility High-capacity Storage Unit Device Improved Cooling System Storage High-capacity Storage Unit Processor Improved Signal Interpreter Hackware Relay Coupler [NC] Protection Medium Reactive Plating Weapon Gauss Rifle Energy Gun Advanced Variable Charge Gun Energy Cannon Phase Cannon Ballistic Gun Gauss Rifle Ballistic Cannon Improved Light Cannon Launcher Heavy Rocket Launcher Special Weapon Remote Datajack Impact Weapon Makeshift Hammer Special Melee Weapon Improved Datajack Build | -11 -10 -10 -10 -9 -8 -8 -8 -8 -7 -7 -6 -6 -6 -6 ------- Run | Yrd Mat Min Exi Min Mat Gar Mat Gar Fac Gar Fac Was Fac Gar Slots Evolved 8 | . . . . . 4 . . . 2 . 2 . . . Power . | . . . . . . . . . . . . . . . Propulsion 2 | . . . . . 2 . . . . . . . . . Utility 4 | . . . . . 1 . . . 2 . 1 . . . Weapon 2 | . . . . . 1 . . . . . 1 . . . Parts Attached 153 | 7 18 2 2 3 21 5 19 9 13 21 5 6 11 11 Power 12 | 1 . . . . 2 . 1 . 1 . 1 2 2 2 Engine 3 | 1 . . . . 2 . . . . . . . . . Core 5 | . . . . . . . 1 . 1 . . 1 1 1 Reactor 4 | . . . . . . . . . . . 1 1 1 1 Propulsion 35 | 2 1 . . . 6 1 6 4 2 9 . . 1 3 Treads 30 | 2 1 . . . 6 1 4 4 2 9 . . . 1 Leg . | . . . . . . . . . . . . . . . Wheel 3 | . . . . . . . 2 . . . . . 1 . Hover . | . . . . . . . . . . . . . . . Flight 2 | . . . . . . . . . . . . . . 2 Utility 54 | 2 5 . 2 2 5 2 7 1 6 9 2 2 5 4 Device 26 | 1 2 . . 2 2 . 4 1 4 3 2 1 2 2 Storage 4 | 1 2 . 1 . . . . . . . . . . . Processor 2 | . . . . . . . . . 1 . . . 1 . Hackware 6 | . . . . . . 1 1 . . 2 . . 1 1 Protection 16 | . 1 . 1 . 3 1 2 . 1 4 . 1 1 1 Artifact . | . . . . . . . . . . . . . . . Weapon 52 | 2 12 2 . 1 8 2 5 4 4 3 2 2 3 2 Energy Gun 5 | 1 . . . . . . 1 . . . . . 2 1 Energy Cannon 7 | . 2 . . . . . 1 . 1 1 . 1 1 . Ballistic Gun 26 | 1 5 1 . 1 6 1 1 3 3 2 1 . . 1 Ballistic Cannon 4 | . 2 . . . 1 . . . . . . 1 . . Launcher 4 | . 1 1 . . . 1 1 . . . . . . . Special Weapon 2 | . 1 . . . . . . 1 . . . . . . Impact Weapon 3 | . 1 . . . 1 . . . . . 1 . . . Slashing Weapon . | . . . . . . . . . . . . . . . Piercing Weapon . | . . . . . . . . . . . . . . . Special Melee Weapon 1 | . . . . . . . 1 . . . . . . . Unidentified Prototypes 13 | . . . . . 4 . 1 . . 1 1 . 6 . Parts Lost 25 | . . . . . . . . . 1 4 . . 1 19 Power 3 | . . . . . . . . . . . . . 1 2 Propulsion 8 | . . . . . . . . . 1 1 . . . 6 Utility 7 | . . . . . . . . . . 2 . . . 5 Weapon 7 | . . . . . . . . . . 1 . . . 6 Highest Loss Streak 11 | . . . . . . . . . 1 2 . . 1 11 To Critical Strikes . | . . . . . . . . . . . . . . . Average Backups 17 | 4 11 15 16 19 18 18 18 19 18 17 15 16 16 13 Power . | . 1 1 1 1 1 1 1 1 1 1 1 1 . . Propulsion 2 | 1 2 3 3 3 2 3 2 3 2 2 2 2 2 1 Utility 5 | . 1 2 3 5 6 6 6 6 6 7 6 7 8 7 Weapon 6 | 1 6 8 8 9 7 6 6 6 6 4 4 4 3 2 Tool/Special . | . . . . . . . . . . . . . . . Unused Backups 25 | 1 6 . . . 2 1 . . 3 4 . 2 2 4 Power 3 | . . . . . 2 . . . . . . 1 . . Propulsion 7 | 1 2 . . . . . . . 1 3 . . . . Utility 7 | . . . . . . 1 . . . 1 . 1 2 2 Weapon 7 | . 4 . . . . . . . 2 . . . . 1 Tool/Special 1 | . . . . . . . . . . . . . . 1 Average Slot Usage (%) 94 | . 100 100 100 100 97 99 99 99 98 83 85 86 86 64 Engine 5 | . 14 14 14 14 9 9 3 . . . . . . . Core 3 | . . . . . . . 5 9 7 7 2 . 1 3 Treads 28 | . 28 28 28 28 35 36 35 36 29 20 13 13 12 10 Device 10 | . 13 13 13 2 9 9 3 9 20 7 20 20 19 9 Storage 9 | . 14 14 14 14 9 9 9 9 7 7 6 6 6 4 Processor 1 | . . . . . . . . . 1 7 6 6 6 4 Hackware 1 | . . . . . . . 5 . . 1 . . . 5 Protection 6 | . . . . 11 7 7 8 9 7 6 6 6 6 4 Energy Cannon 2 | . 3 . . . 2 1 1 . 1 4 . 5 5 . Ballistic Gun 20 | . 12 27 28 27 17 20 24 24 19 15 25 17 18 10 Ballistic Cannon 1 | . 9 . . . 1 . . . . . . 2 . . Impact Weapon 1 | . 1 . . . 3 4 1 . 1 . . . 1 . Peak Build Rating 100 | 7 11 12 15 22 39 43 40 39 53 76 86 91 100 100 Average Rating 40 | 5 9 11 12 15 33 38 37 37 48 63 83 88 89 73 On Entrance 41 | . 7 11 12 15 16 39 39 38 37 51 74 86 91 100 Avg Prop Armor Cover (%) 9 | . . . . . . . 13 . 6 . . . . . Naked Turns 18 | . . . . . . . . . . . . . . 18 Heaviest Build 100 | 13 34 34 54 54 67 71 82 86 90 88 79 100 100 85 Greatest Support 150 | 40 40 40 40 40 83 83 83 83 83 150 150 150 150 150 Greatest Overweight (x) 6 | . . . 1 1 . . 6 1 1 1 . . 1 2 Average Overweight (x) . | . . . . 1 . . . . . . . . . . Largest Inventory Capacity 20 | 8 15 15 20 20 20 20 20 20 20 20 20 20 20 20 Average Capacity 18 | 7 12 15 17 20 20 20 20 20 20 20 20 20 20 17 Most Carried 20 | 6 15 15 20 20 20 20 20 20 20 20 20 20 20 20 Average Carried 18 | 4 11 15 16 19 19 19 19 19 19 19 18 19 19 14 Final Capacity 20 | 8 15 15 20 20 20 20 20 20 20 20 20 20 20 5 Final Carried 20 | 6 15 15 20 20 20 20 20 20 20 20 20 20 20 5 Class Distribution -------------------- 39% | Mutant 29% | Skirmisher 16% | Tank 6% | Scavenger-Tank 3% | Gunner Dominant Class ---------------- Mutant | -10/Materials Mutant | -10/Mines Mutant | -10/Exiles Mutant | -9/Mines Skirmisher | -8/Materials Skirmisher | -8/Garrison Skirmisher | -8/Materials Skirmisher | -8/Garrison Tank | -7/Factory Tank | -7/Garrison Scavenger-Tank | -6/Factory Tank | -6/Waste Scavenger-Tank | -6/Factory Tank | -6/Garrison Resources | -11 -10 -10 -10 -9 -8 -8 -8 -8 -7 -7 -6 -6 -6 -6 ----------- Run | Yrd Mat Min Exi Min Mat Gar Mat Gar Fac Gar Fac Was Fac Gar Matter Collected 8008 | 290 379 151 49 197 1020 595 1237 1127 687 1160 188 167 385 376 Remotely . | . . . . . . . . . . . . . . . Salvage Created 10072 | 151 483 69 . 146 1007 859 1289 770 733 2413 251 381 472 1048 Parts 508 | 11 17 10 . 17 56 39 76 66 39 82 8 14 22 51 Haulers Intercepted 13 | . 2 . . . 3 . 6 . 1 . . . 1 . Recyclers Shooed 5 | . 1 . . . . . . . 1 . . . 3 . Parts Field Recycled . | . . . . . . . . . . . . . . . Retrieved Matter . | . . . . . . . . . . . . . . . Parts Self-Destructed . | . . . . . . . . . . . . . . . Prevented . | . . . . . . . . . . . . . . . Parts Restored . | . . . . . . . . . . . . . . . Kills | -11 -10 -10 -10 -9 -8 -8 -8 -8 -7 -7 -6 -6 -6 -6 ------- Run | Yrd Mat Min Exi Min Mat Gar Mat Gar Fac Gar Fac Was Fac Gar Combat Hostiles Destroyed 191 | . 11 7 . 8 18 19 16 29 13 34 4 . 6 26 Guns 103 | . . 4 . 2 9 11 13 12 12 13 4 . 4 19 Cannons 24 | . 8 . . . 5 1 1 . 1 6 . . 2 . AOE 64 | . 3 3 . 6 4 7 2 17 . 15 . . . 7 Classes Destroyed 18 | 2 5 . . 1 2 2 1 1 . 1 . . . 3 Worker 10 | . . . . 2 1 . 4 . 3 . . . . . Builder 2 | . . . . . . . 1 . . . . . 1 . Tunneler 7 | 4 1 . . 1 1 . . . . . . . . . Hauler 13 | . 2 . . . 3 . 6 . 1 . . . 1 . Recycler 7 | 1 1 . . . 1 . 2 . 1 . . . 1 . Operator 5 | . 2 . . . . . 2 . . . . . 1 . Watcher 9 | . 2 . . . 5 . 1 . . 1 . . . . Swarmer 52 | . 3 6 . 6 4 . 2 16 3 4 . . 4 4 Cutter 3 | . . . . . . . . . . . . . . 3 Grunt 84 | . 8 1 . 2 7 15 7 2 5 19 3 . 2 13 Brawler 3 | . . . . . . 1 . 1 . 1 . . . . Duelist 2 | . . . . . . 1 . 1 . . . . . . Sentry 31 | . . . . . 6 2 4 5 1 9 1 . . 3 Specialist 1 | . . . . . . . . . . 1 . . . . Hunter 8 | . . . . . 1 . 3 1 2 1 . . . . Programmer 5 | . . . . . . . . 3 2 . . . . . Behemoth 1 | . . . . . . . . . . . . . . 1 Assembled 2 | . . . . . . . . . . . . . . 2 Best Kill Streak 13 | 2 4 3 . 7 7 10 5 9 4 7 3 . 3 13 Combat Bots Only 13 | . 4 3 . 6 4 10 3 9 3 7 3 . 3 13 Max Kills in Single Turn 4 | 1 2 2 . 3 3 3 3 3 1 4 1 . 1 4 Gunslinging 1 | . . . . . . 1 . 1 . 1 . . . . Exploded 4 | . 2 2 . 2 2 3 1 3 . 4 . . . 4 Melee . | . . . . . . . . . . . . . . . Uniques/NPCs Destroyed . | . . . . . . . . . . . . . . . Combat | -11 -10 -10 -10 -9 -8 -8 -8 -8 -7 -7 -6 -6 -6 -6 -------- Run | Yrd Mat Min Exi Min Mat Gar Mat Gar Fac Gar Fac Was Fac Gar Hostile Shots Fired 1077 | . 26 9 . 7 56 78 49 94 92 297 18 . 29 322 Missed 325 | . 8 5 . 4 24 19 15 19 21 114 7 . 11 78 Hits 752 | . 18 4 . 3 32 59 34 75 71 183 11 . 18 244 Melee 13 | . . . . . . 2 . . . . . . . 11 Projectile 739 | . 18 4 . 3 32 57 34 75 71 183 11 . 18 233 AOE 3 | . . . . . . . . . . . . . 3 . Critical Strikes 25 | . . . . . 1 6 1 2 2 2 1 . 2 8 Damage Taken 10572 | . 235 34 . 43 491 912 516 866 917 1733 168 . 552 4105 Core 1429 | . 44 . . . 98 72 57 66 69 164 41 . 91 727 Absorbed by Shields 118 | . . . . . . 71 . 5 . 42 . . . . Reduced by Siege Mode 162 | . . . . . . . . . . . 5 . . 157 Ignored by Resistances 436 | . . . . . . . 46 129 195 66 . . . . Regen/Repaired (Parts) 1045 | . . . . . 208 . 323 35 225 119 2 44 89 . Core Remaining (%) 73 | 100 . . . 82 . . . 46 . 66 . . . . Volleys Fired 669 | 20 48 8 . 14 81 41 69 70 57 156 10 11 28 56 Largest 4 | 2 2 2 . 2 3 3 3 3 3 3 4 1 4 4 Hottest 240 | 60 80 46 . 46 110 110 113 113 121 141 114 85 240 240 Shots Fired 1440 | 39 94 14 . 23 155 109 190 156 135 243 40 11 78 153 Gun 1038 | 39 31 12 . 18 94 77 180 134 113 106 40 . 51 143 Cannon 329 | . 61 . . . 57 20 7 3 22 119 . 11 27 2 Launcher 55 | . 2 2 . 5 4 12 3 13 . 12 . . . 2 Special 18 | . . . . . . . . 6 . 6 . . . 6 Kinetic 1054 | 20 71 12 . 18 135 77 180 134 113 106 40 . 50 98 Thermal 313 | 19 21 . . . 16 20 7 3 22 119 . 11 28 47 Explosive 45 | . 2 2 . 5 4 6 3 9 . 12 . . . 2 Electromagnetic 10 | . . . . . . 6 . 4 . . . . . . Robot Hit Streak 27 | 12 17 5 . 8 16 9 11 25 27 24 20 4 5 24 Robot Miss Streak 8 | 3 3 1 . 2 5 2 2 2 8 2 4 2 2 4 Penetration Max 1 | . . . . . . . . . 1 1 . . 1 . Secondary Targets 7 | . . . . . . 2 . 1 1 1 2 . . . Max Gunslinging Chain 1 | . . . . . . 1 . 1 1 1 1 . . . Autonomous 52 | . . . . . . . . . . . . . . 52 Shots Hit Robots 854 | 25 54 8 . 13 96 51 108 82 78 156 27 7 38 111 Core Hits 430 | 8 24 6 . 17 38 36 49 49 28 90 10 4 20 51 Critical Kills 6 | . . . . . . . . . 2 4 . . . . Critical Parts Destroyed 7 | . . . . 1 1 . . 2 . 2 1 . . . Critical Strikes 18 | . 1 . . 1 4 . . 2 2 6 1 . . 1 Meltdown 3 | . . . . . . . . . . 3 . . . . Destroy 11 | . . . . 1 1 . . 2 2 3 1 . . 1 Blast 4 | . 1 . . . 3 . . . . . . . . . Melee Attacks 66 | . 4 . . . 15 14 14 5 1 5 . . 8 . Impact 64 | . 4 . . . 15 14 12 5 1 5 . . 8 . Slashing . | . . . . . . . . . . . . . . . Piercing . | . . . . . . . . . . . . . . . Sneak Attacks 2 | . . . . . . . 2 . . . . . . . Combat Hostiles . | . . . . . . . . . . . . . . . Follow-up Attacks . | . . . . . . . . . . . . . . . Damage Inflicted 24842 | 238 1179 332 . 516 2536 1607 2161 2512 1776 6054 606 242 1177 3906 Guns 12532 | 238 121 136 . 196 988 738 1685 1071 1530 1450 606 . 760 3013 Cannons 5751 | . 884 . . . 1183 106 68 46 219 2553 . 242 415 35 Explosions 6413 | . 174 196 . 320 365 763 295 1395 . 2051 . . . 854 Melee 92 | . . . . . . . 92 . . . . . . . Ramming 54 | . . . . . . . 21 . 27 . . . 2 4 Kinetic 12849 | 87 679 136 . 196 2010 738 1685 1071 1530 1450 606 . 760 1901 Thermal 5434 | 151 326 . . . 161 106 68 46 219 2553 . 242 415 1147 Explosive 5976 | . 174 196 . 320 365 504 295 1217 . 2051 . . . 854 Electromagnetic 437 | . . . . . . 259 . 178 . . . . . . Impact 92 | . . . . . . . 92 . . . . . . . Slashing . | . . . . . . . . . . . . . . . Piercing . | . . . . . . . . . . . . . . . Highest Corruption 4 | . . . . . . . 3 4 . . . . . 4 Average Corruption 3 | . . . . . . . 2 3 . . . . . 3 Corruption Purged 3 | . . . . . . . 3 . . . . . . . Corruption Blocked . | . . . . . . . . . . . . . . . Effects 51 | . . . . . . . 26 24 . . . . . 1 Message Errors 11 | . . . . . . . 5 6 . . . . . . Matter Fused 15 | . . . . . . . 7 7 . . . . . 1 Heat Flow Errors 4 | . . . . . . . . 4 . . . . . . Energy Discharges 10 | . . . . . . . 6 4 . . . . . . Data Loss (minor) 5 | . . . . . . . 2 3 . . . . . . Data Loss (major) 3 | . . . . . . . 3 . . . . . . . Misfires 1 | . . . . . . . 1 . . . . . . . Weapon Failures 2 | . . . . . . . 2 . . . . . . . Overload Shots 9 | . . . . . . . . . . . . . 1 8 Overflow Damage 331 | . 20 33 . 41 128 . 9 27 . 38 . 28 7 . Projectiles 152 | . 20 . . . 87 . . . . 10 . 28 7 . Explosions 173 | . . 33 . 41 41 . 3 27 . 28 . . . . Melee 6 | . . . . . . . 6 . . . . . . . Knockbacks 3 | . 2 . . . 1 . . . . . . . . . Impact . | . . . . . . . . . . . . . . . Kinetic 2 | . 2 . . . . . . . . . . . . . Secondary 1 | . . . . . 1 . . . . . . . . . Self-Inflicted Damage 282 | . 24 . . . . 31 . 91 . 36 . . . 100 Shots 8 | . 1 . . . . 1 . 2 . 2 . . . 2 Rammed 5 | . . . . . . . 2 . 1 . . . 1 1 Targets Rammed 6 | . . . . . . . 2 . 2 . . . 1 1 Kicked . | . . . . . . . . . . . . . . . Crushed 1 | . . . . . . . . . 1 . . . . . Highest Temperature 425 | 40 170 12 . 44 108 368 258 372 18 294 11 . 132 425 Average Temperature 74 | 20 37 6 . 16 42 106 50 112 10 92 6 . 25 150 Received Heat Transfer 3158 | . 93 6 . 27 171 493 153 90 171 540 81 . 198 1135 Effects 8 | . . . . . . 1 . 3 . . . . . 4 Shutdowns 3 | . . . . . . . . . . . . . . 3 Energy Bleed 1 | . . . . . . 1 . . . . . . . . Interference 4 | . . . . . . . . 3 . . . . . 1 Siege Activations 6 | . . . . . . . . . . 1 1 . . 4 Total Turns 96 | . . . . . . . . . . 6 11 . . 79 Longest Duration 35 | . . . . . . . . . . 6 11 . . 35 Martial Activations . | . . . . . . . . . . . . . . . Shielding Activations . | . . . . . . . . . . . . . . . Robots Disrupted . | . . . . . . . . . . . . . . . Combat Hostiles . | . . . . . . . . . . . . . . . Robots Corrupted . | . . . . . . . . . . . . . . . Combat Hostiles . | . . . . . . . . . . . . . . . Parts Fried 1 | . . . . . . . . 1 . . . . . . Impact Corruptions 1 | . . . . . . . 1 . . . . . . . Robots Melted 3 | . . . . . . . . . . 3 . . . . Combat Hostiles . | . . . . . . . . . . . . . . . Parts Melted 8 | . . . . . . . . . . 6 . . 2 . Heat Transferred 7392 | 350 666 . . . 333 222 111 74 296 3145 . 296 650 1249 Parts Sabotaged . | . . . . . . . . . . . . . . . Parts Stolen . | . . . . . . . . . . . . . . . Parts Stripped . | . . . . . . . . . . . . . . . Power Chain Reactions . | . . . . . . . . . . . . . . . Alert | -11 -10 -10 -10 -9 -8 -8 -8 -8 -7 -7 -6 -6 -6 -6 ------- Run | Yrd Mat Min Exi Min Mat Gar Mat Gar Fac Gar Fac Was Fac Gar Maximum Alert Level 5 | . . . . . 1 2 1 4 2 5 3 1 . 2 Low Security (%) 57 | 100 100 100 . 100 99 29 63 5 2 . . 64 100 53 Level 1 17 | . . . . . . 31 36 7 78 6 . 35 . 17 Level 2 8 | . . . . . . 39 . 17 19 20 . . . 29 Level 3 9 | . . . . . . . . 53 . 26 100 . . . Level 4 2 | . . . . . . . . 16 . 15 . . . . Level 5 3 | . . . . . . . . . . 31 . . . . High Security . | . . . . . . . . . . . . . . . Max Security . | . . . . . . . . . . . . . . . Peak Influence 2011 | 5 107 99 . 193 201 661 376 1241 651 2011 1055 330 73 619 Initial 1055 | . . . . . . 24 321 72 651 250 1055 330 . . Average 326 | . 24 18 . 64 67 328 177 779 357 1181 1010 151 12 256 Influence Increases 7716 | 25 370 198 . 343 654 647 782 1209 456 1861 115 2 195 859 Destroy 0b10 Robot/C 4060 | . 220 140 . 220 360 380 320 660 260 820 80 . 120 480 Destroy 0b10 Robot/NC 310 | 25 40 . . 15 55 . 80 5 25 45 . . 20 . Destroy Leader 552 | . 48 20 . 40 116 10 124 40 62 30 20 . 12 30 Allied During Kill 176 | . . 6 . 16 . . . 14 . 140 . . . . Successful Hack 173 | . 16 . . . 12 26 40 16 41 14 . . 8 . Select Force Hacks 60 | . . . . . . . 60 . . . . . . . Disable Machine 390 | . 30 15 . 15 45 30 105 15 45 60 15 . 15 . Anti-Garrison Action 1200 | . . . . . . 150 . 250 . 550 . . . 250 Destroy Structure 570 | . 16 17 . 37 66 51 38 134 8 157 . 2 20 24 Partial Spotted 30 | . . . . . . . 15 . . . . . . 15 Lose Combat Pursuer 195 | . . . . . . . . 75 15 45 . . . 60 Influence Decreases 7097 | 25 370 159 39 343 617 23 1331 80 1339 208 1182 946 195 240 Entered New Map 2700 | . . . 39 . . 13 340 40 590 108 956 614 . . Time Decay 3507 | 25 370 159 . 323 617 . 691 . 589 . 206 332 195 . Lost Part 240 | . . . . . . . . . 10 40 . . . 190 Lost Ally 200 | . . . . 20 . 10 . 40 . 60 20 . . 50 Purge Threat 450 | . . . . . . . 300 . 150 . . . . . Squads Dispatched 22 | . 1 . . . 4 . 7 . 6 . 1 . 3 . Investigation 5 | . . . . . 1 . 3 . 1 . . . . . Extermination 4 | . . . . . . . . . 3 . . . 1 . Reinforcement 12 | . 1 . . . 3 . 4 . 1 . 1 . 2 . Assault . | . . . . . . . . . . . . . . . Garrison 1 | . . . . . . . . . 1 . . . . . Intercept . | . . . . . . . . . . . . . . . Searches Triggered . | . . . . . . . . . . . . . . . Construction Impeded 2 | . . . . . . . . . 1 . . . 1 . Haulers Reinforced . | . . . . . . . . . . . . . . . Active Scanning Responses . | . . . . . . . . . . . . . . . Cargo Convoy Interrupts 1 | . . . . . . . . . . . . . 1 . Stealth | -11 -10 -10 -10 -9 -8 -8 -8 -8 -7 -7 -6 -6 -6 -6 --------- Run | Yrd Mat Min Exi Min Mat Gar Mat Gar Fac Gar Fac Was Fac Gar Distress Signals 7 | . 1 . . . 1 . 3 . 1 . . . 1 . Communications Jammed . | . . . . . . . . . . . . . . . Distress Signals . | . . . . . . . . . . . . . . . Times Spotted 259 | . 19 5 . 5 26 19 22 32 26 40 6 . 11 48 Peak Tracking Total 14 | . 5 2 . 2 5 6 2 8 4 9 3 . 3 14 Tactical Retreats 12 | . . . . . . . . 4 1 2 . . . 5 Traps | -11 -10 -10 -10 -9 -8 -8 -8 -8 -7 -7 -6 -6 -6 -6 ------- Run | Yrd Mat Min Exi Min Mat Gar Mat Gar Fac Gar Fac Was Fac Gar Traps Triggered 13 | . 1 . . . 1 2 4 1 . 1 1 . 2 . Indirectly . | . . . . . . . . . . . . . . . Trap Hack Attempts . | . . . . . . . . . . . . . . . Triggered . | . . . . . . . . . . . . . . . Disarmed . | . . . . . . . . . . . . . . . Reprogrammed . | . . . . . . . . . . . . . . . Reused . | . . . . . . . . . . . . . . . Traps Extracted . | . . . . . . . . . . . . . . . Installed . | . . . . . . . . . . . . . . . Triggered . | . . . . . . . . . . . . . . . Most Traps Carried 4 | . . . . 4 4 . . . . . . . . . Machines | -11 -10 -10 -10 -9 -8 -8 -8 -8 -7 -7 -6 -6 -6 -6 ---------- Run | Yrd Mat Min Exi Min Mat Gar Mat Gar Fac Gar Fac Was Fac Gar Machines Disabled 38 | . 2 1 . 1 3 5 7 4 3 9 1 . 1 1 Max in Single Turn 2 | . 1 1 . 1 1 2 1 1 1 1 1 . 1 1 Garrison Access 1 | . . . . . . . . . 1 . . . . . Garrison Relay 11 | . . . . . . 3 . 3 . 4 . . . 1 Machines Repaired . | . . . . . . . . . . . . . . . Machines Dismantled . | . . . . . . . . . . . . . . . Machines Sabotaged . | . . . . . . . . . . . . . . . Overloaded Fab Kills . | . . . . . . . . . . . . . . . Hacking | -11 -10 -10 -10 -9 -8 -8 -8 -8 -7 -7 -6 -6 -6 -6 --------- Run | Yrd Mat Min Exi Min Mat Gar Mat Gar Fac Gar Fac Was Fac Gar Machines Accessed 56 | . 6 1 1 . 8 2 15 2 11 2 . . 5 3 Terminals 40 | . 6 1 . . 4 2 9 2 8 2 . . 3 3 Fabricators 1 | . . . . . . . . . . . . . 1 . Repair Stations 4 | . . . . . 1 . 2 . 1 . . . . . Recycling Units 2 | . . . . . . . 2 . . . . . . . Scanalyzers 3 | . . . . . 2 . 1 . . . . . . . Garrison Access 5 | . . . . . 1 . 1 . 2 . . . 1 . Total Hacks 139 | . 15 1 1 . 24 2 48 2 28 4 . . 9 5 Successful 71 | . 8 1 1 . 16 2 23 2 14 1 . . 2 1 Failed 68 | . 7 . . . 8 . 25 . 14 3 . . 7 4 Catastrophic 12 | . . . . . 1 . 2 . 6 . . . 1 2 Database Lockouts . | . . . . . . . . . . . . . . . Manual 69 | . 13 4 1 . 10 . 20 1 13 . . . 7 . Terminals 97 | . 15 1 . . 12 2 30 2 19 4 . . 7 5 Fabricators 1 | . . . . . . . . . . . . . 1 . Repair Stations 18 | . . . . . 6 . 7 . 5 . . . . . Recycling Units 2 | . . . . . . . 2 . . . . . . . Scanalyzers 12 | . . . . . 5 . 7 . . . . . . . Garrison Access 8 | . . . . . 1 . 2 . 4 . . . 1 . Terminal Hacks 28 | . 5 1 1 . 2 2 7 2 5 1 . . 1 1 Robot Analysis 4 | . 2 . . . 1 . 1 . . . . . . . Open Door 1 | . . . . . . . . . . . . . . 1 Open DSF 1 | . . . . . . . . . 1 . . . . . Branch Access Points 2 | . . . . . . . . . 1 . . . 1 . Emergency Access Points 3 | . . . . . . 1 . 1 . 1 . . . . Terminal Index 1 | . . . . . . . 1 . . . . . . . Repair Station Index 1 | . . . . . . . 1 . . . . . . . Unreport Threat 3 | . . . . . . . 2 . 1 . . . . . Locate Traps 2 | . 1 . . . . . . . 1 . . . . . Dispatch Records 1 | . . 1 . . . . . . . . . . . . Hauler Manifests 4 | . 1 . . . 1 . 1 . 1 . . . . . Registered Components 1 | . . . . . . . 1 . . . . . . . Zone Layout 1 | . 1 . . . . . . . . . . . . . Garrison Registry 1 | . . . . . . 1 . . . . . . . . Security Stations 1 | . . . . . . . . 1 . . . . . . Proto ID Catalog 1 | . . . 1 . . . . . . . . . . . Fabricator Hacks . | . . . . . . . . . . . . . . . Repair Station Hacks 14 | . . . . . 6 . 5 . 3 . . . . . Scan Component 8 | . . . . . 3 . 3 . 2 . . . . . Repair 6 | . . . . . 3 . 2 . 1 . . . . . Recycling Unit Hacks . | . . . . . . . . . . . . . . . Scanalyzer 8 | . . . . . 4 . 4 . . . . . . . Insert Component 1 | . . . . . . . 1 . . . . . . . Retrieve Study 7 | . . . . . 4 . 3 . . . . . . . Garrison Access Hacks 8 | . . . . . 1 . 2 . 4 . . . 1 . Unlock Access 4 | . . . . . 1 . 1 . 1 . . . 1 . Seal Access 1 | . . . . . . . . . 1 . . . . . Coupler Status 3 | . . . . . . . 1 . 2 . . . . . Unauthorized Hacks 13 | . 3 . . . 3 . 5 . 2 . . . . . Terminals 11 | . 3 . . . 3 . 3 . 2 . . . . . Botnet 10 | . 2 . . . 3 . 3 . 2 . . . . . Operators 1 | . 1 . . . . . . . . . . . . . Fabricators . | . . . . . . . . . . . . . . . Repair Stations . | . . . . . . . . . . . . . . . Recycling Units 2 | . . . . . . . 2 . . . . . . . Tunnel 2 | . . . . . . . 2 . . . . . . . Scanalyzers . | . . . . . . . . . . . . . . . Garrison Access . | . . . . . . . . . . . . . . . Data Cores Recovered 1 | . 1 . . . . . . . . . . . . . Used . | . . . . . . . . . . . . . . . Hacking Detections 49 | . 6 1 . . 8 1 13 1 10 2 . . 5 2 Full Trace Events 5 | . . . . . . . 1 . 1 1 . . . 2 Feedback Events 1 | . . . . . . . . . . . . . . 1 Corruption 1 | . . . . . . . . . . . . . . 1 Feedback Blocked . | . . . . . . . . . . . . . . . Robot Schematics Acquired . | . . . . . . . . . . . . . . . Robots Built . | . . . . . . . . . . . . . . . Authchips . | . . . . . . . . . . . . . . . Time . | . . . . . . . . . . . . . . . Total Robot Build Rating . | . . . . . . . . . . . . . . . Part Schematics Acquired . | . . . . . . . . . . . . . . . Parts Built . | . . . . . . . . . . . . . . . Authchips . | . . . . . . . . . . . . . . . Time . | . . . . . . . . . . . . . . . Total Part Build Rating . | . . . . . . . . . . . . . . . Part Studies Acquired 7 | . . . . . 4 . 3 . . . . . . . Parts Repaired 6 | . . . . . 3 . 2 . 1 . . . . . Time 330 | . . . . . 178 . 114 . 38 . . . . . Parts Recycled . | . . . . . . . . . . . . . . . Recycled Matter . | . . . . . . . . . . . . . . . Retrieved Matter . | . . . . . . . . . . . . . . . Retrieved Components . | . . . . . . . . . . . . . . . Parts Scanalyzed 1 | . . . . . . . 1 . . . . . . . Part Schematics Acquired . | . . . . . . . . . . . . . . . Parts Damaged . | . . . . . . . . . . . . . . . Bothacking | -11 -10 -10 -10 -9 -8 -8 -8 -8 -7 -7 -6 -6 -6 -6 ------------ Run | Yrd Mat Min Exi Min Mat Gar Mat Gar Fac Gar Fac Was Fac Gar Used RIF Installer 3 | . . . . . . 1 . 1 . 1 . . . . Coupler Efficiency 1 | . . . . . . . . . . 1 . . . . Zone Cloak 1 | . . . . . . . . 1 . . . . . . Robots Hacked 3 | . . . . . . . 2 . . 1 . . . . Non-combat 3 | . . . . . . . 2 . . 1 . . . . Combat . | . . . . . . . . . . . . . . . Robot Hacks Applied 3 | . . . . . . . 2 . . 1 . . . . mark_security 1 | . . . . . . . 1 . . . . . . . formatsys_low 2 | . . . . . . . 1 . . 1 . . . . Relay Couplers Released 40 | . . . . . . 12 . 12 . 13 . . . 3 Machine Destruction 40 | . . . . . . 12 . 12 . 13 . . . 3 Attached 3 | . . . . . . . 1 . . 1 . . . 1 Fabnet Peak Effective % . | . . . . . . . . . . . . . . . Robots Rewired 9 | . . . . . . . . 2 . 5 . . . 2 Allies Hacked . | . . . . . . . . . . . . . . . Hacks Repelled . | . . . . . . . . . . . . . . . Allies | -11 -10 -10 -10 -9 -8 -8 -8 -8 -7 -7 -6 -6 -6 -6 -------- Run | Yrd Mat Min Exi Min Mat Gar Mat Gar Fac Gar Fac Was Fac Gar Total Allies 16 | . . 2 . 3 . . 1 2 . 6 . . . 2 Largest Group 6 | . . 2 2 3 1 . 1 3 . 6 2 1 1 2 Highest-Rated Group 200 | . . 41 41 40 16 . 14 46 . 200 66 23 23 75 Highest-Rated Ally 46 | . . 31 31 16 16 . 14 16 . 43 43 23 23 46 Total Orders 21 | . . . . 2 2 1 4 3 . 4 1 1 2 1 STAY 6 | . . . . . . . 1 2 . 1 . . 1 1 ROAM 1 | . . . . . . . . . . 1 . . . . FOLLOW 1 | . . . . . . . 1 . . . . . . . AID 8 | . . . . . . . 2 1 . 2 1 1 1 . EXPLORE 4 | . . . . 1 2 1 . . . . . . . . RETURN 1 | . . . . 1 . . . . . . . . . . Ally Attacks 85 | . . 2 . 19 2 . . 15 . 43 3 . . 1 Total Damage 1769 | . . 21 . 172 15 . . 152 . 1327 64 . . 18 Kills 14 | . . . . 3 . . . 4 . 7 . . . . Allies Corrupted . | . . . . . . . . . . . . . . . Allies Melted 1 | . . . . . . . . . . 1 . . . . Intel | -11 -10 -10 -10 -9 -8 -8 -8 -8 -7 -7 -6 -6 -6 -6 ------- Run | Yrd Mat Min Exi Min Mat Gar Mat Gar Fac Gar Fac Was Fac Gar Active Infowar (turns) 8055 | 12 1679 1157 1114 18 2 . . . 1838 6 433 780 1009 7 Sensors 3406 | . . . . . 2 . . . 1173 6 429 780 1009 7 Terrain 50 | . 50 . . . . . . . . . . . . . Traps 2 | . . . . . . . . . . . . . 2 . Seismic 4595 | 12 1629 1157 1114 18 . . . . 665 . . . . . Jamming 45 | . . . . . . . . . 19 . 26 . . . Robot Analysis Total 4 | . 2 . . . 1 . 1 . . . . . . . Derelict Logs Recovered 3 | . . 2 . 1 . . . . . . . . . . Drone Launches 4 | . . . . 1 2 1 . . . . . . . . Drone Recoveries 3 | . . . . 1 2 . . . . . . . . . Exploration | -11 -10 -10 -10 -9 -8 -8 -8 -8 -7 -7 -6 -6 -6 -6 ------------- Run | Yrd Mat Min Exi Min Mat Gar Mat Gar Fac Gar Fac Was Fac Gar Turns Passed 20537 | 241 1788 1173 1125 1082 2852 1081 2814 1431 1840 2243 433 780 1009 645 Spaces Moved 10353 | 108 973 713 567 417 1414 529 1449 714 831 1056 231 455 529 367 Core 80 | 6 . . . . . . . . . . . . . 74 Treads 10161 | 102 973 713 567 417 1414 529 1445 714 831 1056 231 455 529 185 Legs . | . . . . . . . . . . . . . . . Wheels 4 | . . . . . . . 4 . . . . . . . Hover . | . . . . . . . . . . . . . . . Flight 108 | . . . . . . . . . . . . . . 108 Fastest Speed 35 | 50 160 160 160 240 160 165 135 162 162 160 160 160 160 35 Average Speed 167 | 153 160 160 197 240 161 165 164 162 190 162 160 160 160 101 Slowest Speed 320 | 160 160 160 240 240 165 165 225 212 207 203 160 160 240 320 Overloaded Moves . | . . . . . . . . . . . . . . . Propulsion Burnouts . | . . . . . . . . . . . . . . . Robots Hopped 1 | . . . . . . . . . . . . . . 1 Potential Cave-ins . | . . . . . . . . . . . . . . . Cave-ins Triggered . | . . . . . . . . . . . . . . . Exploration Rate (%) 66 | 5 99 99 91 99 97 69 87 75 22 91 6 97 14 42 Regions Visited 14 Branch Regions 3 Pre-discovered Areas 4 | . . 1 . 1 . . 2 . . . . . . . Known Exits Taken 4 | . . . . . 1 . 1 . 1 . . . 1 . Unknown Exits Taken 5 | 1 1 1 1 1 . . . . . . . . . . Scrap Searched 2 | . . 1 . 1 . . . . . . . . . . Spaces Dug 59 | . 3 . . . 17 9 14 5 2 . . . 9 . Terrain Destroyed 457 | . 16 20 . 47 72 11 42 79 17 111 2 3 22 15 Melee 47 | . 3 . . . 15 5 11 5 1 . . . 7 . Projectile 91 | . 3 . . . 24 . 7 6 16 7 2 3 15 8 AOE 319 | . 10 20 . 47 33 6 24 68 . 104 . . . 7 Terrain Rammed . | . . . . . . . . . . . . . . . Walls Destroyed . | . . . . . . . . . . . . . . . Machines Disabled . | . . . . . . . . . . . . . . . Actions | -11 -10 -10 -10 -9 -8 -8 -8 -8 -7 -7 -6 -6 -6 -6 --------- Run | Yrd Mat Min Exi Min Mat Gar Mat Gar Fac Gar Fac Was Fac Gar Total 12523 | 145 1107 734 573 479 1851 666 1781 872 980 1382 268 497 629 559 Wait 915 | 2 27 7 . 39 265 58 190 44 42 79 14 11 28 109 Move 10339 | 107 972 712 566 416 1414 528 1448 713 830 1055 231 454 528 365 Hop 1 | . . . . . . . . . . . . . . 1 Pick Up 100 | 8 19 2 4 2 16 5 4 5 10 12 2 3 3 5 Fast Attach 46 | 6 . . . . 4 . 9 3 3 9 . . 7 5 Attach 37 | 1 1 . . . 8 2 2 . 2 7 2 . 2 10 Detach 17 | . 1 . . . 2 1 3 . . 6 . . 3 1 Swap 180 | . 21 3 2 6 23 12 28 17 17 20 7 10 10 4 Drop 135 | 1 14 2 1 2 23 5 12 13 16 23 2 8 11 2 Fire 669 | 20 48 8 . 14 81 41 69 70 57 156 10 11 28 56 Melee 66 | . 4 . . . 15 14 14 5 1 5 . . 8 . Ram 1 | . . . . . . . . . . . . . . 1 Kick . | . . . . . . . . . . . . . . . Crush 5 | . . . . . . . 2 . 2 . . . 1 . Escape Stasis 2 | . . . . . . . . 2 . . . . . . Rewire 10 | . . . . . . . . . . 10 . . . . Trap . | . . . . . . . . . . . . . . . Miscellaneous . | . . . . . . . . . . . . . . . Route ------- -11/Scrapyard -10/Materials (discovered 6 exits: [*Mat x3] / *Min x2 / *Sub) -10/Mines (discovered 4 exits: [*Mat x2] / *Exi / *Sub) -10/Exiles (discovered 2 exits: [*Min x2]) -9/Mines (discovered 2 exits: *Mat x2) -8/Materials (discovered 4 exits: *Fac x3 / Gar) -8/Garrison (discovered 3 exits: *Mat x3) -8/Materials (discovered 4 exits: *Fac x3 / Gar) -8/Garrison (discovered 2 exits: *Fac x2) -7/Factory (discovered 3 exits: Low x2 / Gar) -7/Garrison (discovered 3 exits: *Fac x3) -6/Factory -6/Waste -6/Factory (discovered 3 exits: Low x2 / Gar) -6/Garrison (discovered 1 exit: [*Fac]) History --------- Turn | Location | Event 13 | -11/Scrapyard | Discovered new exit (range 15) 242 | -11/Scrapyard | Entered Materials 307 | -10/Materials | Build established: Mutant 461 | -10/Materials | Discovered new exit (range 16) 535 | -10/Materials | Discovered new exit (range 13) 1190 | -10/Materials | Discovered new exit (range 15) 1256 | -10/Materials | Discovered new exit (range 3) 1481 | -10/Materials | Discovered new exit (range 8) 1880 | -10/Materials | Discovered new exit (range 13) 2030 | -10/Materials | Entered Mines 2150 | -10/Mines | Found a damaged Exp. Sensor Array with a note attached 2154 | -10/Mines | Found Prototype Device 2168 | -10/Mines | Learned location of Zion (-7) 2182 | -10/Mines | Discovered new exit (range 7) 2192 | -10/Mines | Received a Rocket Launcher from a helpful Derelict 2401 | -10/Mines | Discovered new exit (range 8) 2483 | -10/Mines | Deemed a non-threat by the Exiles lab entrance 2566 | -10/Mines | Identified exit to Subcaves 3191 | -10/Mines | Discovered new exit (range 5) 3203 | -10/Mines | Entered Exiles 3203 | -10/Exiles | Accompanied by 2 allies 3226 | -10/Exiles | Discovered new exit (range 15) 3233 | -10/Exiles | Led the pair of lost Derelicts to a safe place 3275 | -10/Exiles | Met 8R-AWN 3299 | -10/Exiles | Met EX-HEX 3410 | -10/Exiles | Met EX-DEC 3449 | -10/Exiles | Visited The Gauntlet 3940 | -10/Exiles | Met EX-BIN 3973 | -10/Exiles | Aligned with FarCom system 3976 | -10/Exiles | Given EX-Vault access code 4057 | -10/Exiles | Opened EX-Vault 4077 | -10/Exiles | Found AWS/Gauss 4080 | -10/Exiles | Found Field Lobotomy Kit 4093 | -10/Exiles | Found Supersonic Drone Bay 4147 | -10/Exiles | Warned to stay clear of 0b10 Research branches 4298 | -10/Exiles | Discovered new exit (range 14) 4328 | -10/Exiles | Stole three prototypes: Supersonic Drone Bay, AWS/Gauss, Field Lobotomy Kit 4328 | -10/Exiles | Entered Mines 4336 | -9/Mines | Assisted by bots powering up and referring to "LRC-V3" 4364 | -9/Mines | Found a hidden stash of uninstalled traps 4834 | -9/Mines | A weapon hastily lodged in a ceiling crevice suddenly fell to the ground 5275 | -9/Mines | Discovered new exit (range 11) 5276 | -9/Mines | Discovered new exit (range 16) 5410 | -9/Mines | Entered Materials 5410 | -8/Materials | Accompanied by 1 ally 5410 | -8/Materials | Evolved 4 slots: Propulsion x2, Utility x1, Weapon x1 5428 | -8/Materials | Discovered new exit (range 76) 5433 | -8/Materials | Discovered new exit (range 55) 5794 | -8/Materials | Build established: Skirmisher 6204 | -8/Materials | Identified Exp. Sensor Array 7218 | -8/Materials | Discovered new exit (range 13) 7371 | -8/Materials | Build established: Mutant 8004 | -8/Materials | Repaired Exp. Sensor Array 8047 | -8/Materials | Repaired Arm. Treads+ 8082 | -8/Materials | Repaired Imp. Treads 8262 | -8/Materials | Identified exit to Garrison 8262 | -8/Materials | Entered Garrison 8500 | -8/Garrison | Triggered checkpoint 8501 | -8/Garrison | Discovered new exit (range 36) 8505 | -8/Garrison | Discovered new exit (range 69) 8509 | -8/Garrison | Discovered new exit (range 55) 8553 | -8/Garrison | Discovered new exit (range 86) 8553 | -8/Garrison | Discovered new exit (range 73) 8553 | -8/Garrison | Discovered new exit (range 36) 8581 | -8/Garrison | Garrison Relay disabled 8904 | -8/Garrison | Triggered checkpoint 8904 | -8/Garrison | Triggered checkpoint 8911 | -8/Garrison | Triggered checkpoint 8954 | -8/Garrison | Destroyed 10 combat bots 9023 | -8/Garrison | Garrison Relay disabled 9212 | -8/Garrison | Triggered checkpoint 9234 | -8/Garrison | Garrison Relay disabled 9261 | -8/Garrison | Installed Relay Interface Framework 9343 | -8/Garrison | Entered Materials 9492 | -8/Materials | Build established: Skirmisher 9611 | -8/Materials | Discovered new exit (range 14) 10317 | -8/Materials | Met 7R-MNS 10536 | -8/Materials | Discovered new exit (range 16) 10922 | -8/Materials | Discovered new exit (range 5) 11072 | -8/Materials | Repaired Broken Enh. Autogun 11111 | -8/Materials | Repaired Arm. Treads+ 12143 | -8/Materials | Identified exit to Garrison 12157 | -8/Materials | Entered Garrison 12157 | -8/Garrison | Accompanied by 1 ally 12164 | -8/Garrison | Build established: Mutant 12226 | -8/Garrison | Triggered checkpoint 12275 | -8/Garrison | Destroyed 9 combat bots 12275 | -8/Garrison | Garrison Relay disabled 12575 | -8/Garrison | Build established: Skirmisher 12578 | -8/Garrison | Triggered checkpoint 12583 | -8/Garrison | Core integrity fell below 50% 12610 | -8/Garrison | Destroyed 9 combat bots 12641 | -8/Garrison | Triggered checkpoint 12759 | -8/Garrison | Garrison Relay disabled 12797 | -8/Garrison | Discovered new exit (range 15) 13041 | -8/Garrison | Triggered checkpoint 13224 | -8/Garrison | Expanded RIF knowledge: Zone Cloak 13256 | -8/Garrison | Discovered new exit (range 13) 13313 | -8/Garrison | Triggered checkpoint 13360 | -8/Garrison | Learned Factory security intel 13389 | -8/Garrison | Garrison Relay disabled 13588 | -8/Garrison | Entered Factory 13588 | -7/Factory | Evolved 2 slots: Utility x2 13590 | -7/Factory | FarCom data flow suspended 13732 | -7/Factory | Identified exit to DSF 13875 | -7/Factory | Build established: Tank 14914 | -7/Factory | Identified exit to Lower Caves 14961 | -7/Factory | Garrison activated, responded to threat 14979 | -7/Factory | Build established: Gunner 15183 | -7/Factory | Repaired Arm. Treads+ 15359 | -7/Factory | Identified exit to Garrison 15428 | -7/Factory | Entered Garrison 15431 | -7/Garrison | Build established: Skirmisher 15906 | -7/Garrison | Triggered checkpoint 16011 | -7/Garrison | Triggered checkpoint 16011 | -7/Garrison | Triggered checkpoint 16034 | -7/Garrison | Triggered checkpoint 16044 | -7/Garrison | Triggered checkpoint 16070 | -7/Garrison | Destroyed 7 combat bots 16123 | -7/Garrison | Discovered new exit (range 10) 16152 | -7/Garrison | Triggered checkpoint 16165 | -7/Garrison | Garrison Relay disabled 16516 | -7/Garrison | Build established: Commander-Tank 16554 | -7/Garrison | Triggered checkpoint 16724 | -7/Garrison | Triggered checkpoint 16728 | -7/Garrison | Garrison Relay disabled 16790 | -7/Garrison | Discovered new exit (range 11) 16991 | -7/Garrison | Build established: Tank 17026 | -7/Garrison | Expanded RIF knowledge: Coupler Efficiency 17065 | -7/Garrison | Garrison Relay disabled 17121 | -7/Garrison | Discovered new exit (range 11) 17489 | -7/Garrison | Garrison Relay disabled 17668 | -7/Garrison | Identified exit to Factory 17671 | -7/Garrison | Entered Factory 17671 | -6/Factory | Accompanied by 2 allies 17671 | -6/Factory | Evolved 2 slots: Utility x1, Weapon x1 18086 | -6/Factory | Build established: Scavenger-Tank 18104 | -6/Factory | Sucked down chute 18104 | -6/Factory | Entered Waste 18104 | -6/Waste | The area was eerily silent 18169 | -6/Waste | 1 allies followed down the chute 18625 | -6/Waste | Discovered new exit (range 11) 18699 | -6/Waste | Build established: Tank 18821 | -6/Waste | Found Prototype Hackware 18879 | -6/Waste | Identified exit to Factory 18884 | -6/Waste | Entered Factory 18884 | -6/Factory | Accompanied by 1 ally 18892 | -6/Factory | Identified exit to Garrison 19082 | -6/Factory | Build established: Scavenger-Tank 19494 | -6/Factory | Allied Derelicts emerged from ambush trap array 19615 | -6/Factory | Allied Derelicts emerged from ambush trap array 19628 | -6/Factory | Cargo convoy interrupted 19708 | -6/Factory | Identified exit to Lower Caves 19748 | -6/Factory | Build established: Tank 19757 | -6/Factory | Identified Exp. Hacking Suite 19807 | -6/Factory | Found Prototype Processor 19807 | -6/Factory | Identified Exp. Signal Interpreter 19893 | -6/Factory | Entered Garrison 19893 | -6/Garrison | Accompanied by 1 ally 19933 | -6/Garrison | Triggered checkpoint 20139 | -6/Garrison | Garrison Relay disabled 20207 | -6/Garrison | Spotted B-75 Beast 20241 | -6/Garrison | Destroyed B-75 Beast 20283 | -6/Garrison | Lost 11 parts (1p2n3u5w) 20309 | -6/Garrison | Destroyed 13 combat bots 20311 | -6/Garrison | Assembled breached garrison interior 20319 | -6/Garrison | AWS/Gauss suddenly broke down 20422 | -6/Garrison | Core integrity fell below 50% 20428 | -6/Garrison | Released all parts (6) 20458 | -6/Garrison | Core integrity fell below 20% 20503 | -6/Garrison | Lost 6 parts (1p3n1u1w) 20537 | -6/Garrison | Discovered new exit (range 12) 20538 | -6/Garrison | Destroyed by as-53180 with Assembled Rifle Last Messages --------------- 20456_ C-45 Heavy ARC bursts open, deploying its payload. 20456_ B-48 Gladiator unfolds itself. 20456_ G-50 Soldier unfolds itself. 20456_ as-05268 system corrupted by crushing effect. 20456_ as-05268 destroyed. 20456_ Field strength at 36. 20470_ Acquired VTOL Module. 20472_ VTOL Module destroyed. 20478_ Connecting with Garrison Terminal... Feedback: System corruption (+1%). 20478_ ALERT: Suspicious activity at Terminal G001. Transmitting hostile system tracking data. 20481_ Detecting nearby RIF Installer. 20493_ as-19716 destroyed. 20510_ System corrupted: Matter fused (-7). 20522_ Acquired 3 matter. 20524_ Acquired 12 matter. 20533_ as-80581 destroyed. 20533_ Acquired 7 matter. 20537_ EXIT=FOUND Map ----- +----------------------------------------------------+ | ?????????????????????????????????????????????????? | | ?????????????????????????????????????????????????? | | ?????????????????????????????????????????????????? | | ?????????????????????????????????????????????????? | | ?????????????????????????????????????????????????? | | ?????????????????????????????????????????????????? | | ?????????????????????????????????????????????????? | | ?????????????????????????????????????????????????? | | ?????????????????????????????????????????????????? | | ?????????????????????????????????????????????????? | | ?????????????????????????????????????????????????? | | ?????????????????????????????????????????????????? | | ????????????????????????###??????????????????????? | | ???????????????????????# ??????????????????????? | | ???????????????????????#